[Event "Frauenbundesliga 2021-22"]
[Site "Germany"]
[Date "2022.05.27"]
[Round "4.6"]
[White "Genova, Lyubka"]
[Black "Schoene, Maria"]
[Result "1/2-1/2"]
[ECO "B20"]
[WhiteElo "2225"]
[BlackElo "2222"]
[Annotator "TA"]
[PlyCount "96"]
[EventDate "2021.11.26"]
[EventType "team-tourn"]
[EventCountry "GER"]
[SourceTitle "playchess.com"]
[Source "ChessBase"]
[SourceQuality "1"]
[WhiteTeam "Hamburger SK"]
[BlackTeam "Bad Koenigshofen"]
[TimeControl "40/5400+30:1800+30"]

{[%evp 9,96,-10,-13,-25,-17,-18,-10,-19,-26,-10,-21,-26,-27,-35,-42,-58,-58,-55,-57,-49,-44,-62,-29,-68,-35,-29,37,52,70,-10,0,-16,75,76,85,87,174,170,213,100,106,64,81,56,84,81,100,73,101,0,47,0,91,30,62,64,194,25,74,57,108,108,120,120,116,92,144,133,163,66,100,80,94,83,106,77,77,0,64,64,64,64,64,64,64,64,71,0,0]} 1. e4 {[%emt 0:00:03]} c5 {[%emt 0:00:07]} 2. b3 {[%emt 0:00:07]} Nc6 {[%emt 0:08:03]} 3. Bb2 {[%emt 0:00:16]} d6 {[%emt 0:05:42]} 4. Bb5 {[%emt 0:02:02]} Bd7 {[%emt 0:00:49]} 5. f4 {[%emt 0:02:57]} Nf6 {[%emt 0:01:04]} 6. Bxc6 {[%emt 0:02:27] B20: Sicilian: Unusual White 2nd moves.} Bxc6 {[%emt 0:00:49]} 7. d3 {[%emt 0:00:19]} e6 {[%emt 0:05:29]} 8. Nf3 {[%emt 0:00:20]} Be7 {[%emt 0:01:06]} 9. O-O {[%emt 0:00:49]} O-O {[%emt 0:00:24]} 10. Nbd2 {[%emt 0:02:06]} b5 {[%emt 0:01:42]} 11. Qe2 {[%emt 0:04:55]} a5 {[%emt 0:04:18] [#]} 12. c4 $146 {[%emt 0:16:45]} ({Predecessor:} 12. Ng5 h6 13. Nh3 a4 14. Rab1 axb3 15. axb3 Ra2 16. f5 e5 17. Kh1 {0-1 (38) Oros,R (2236)-Zajarnyi,A (2304) Mukachevo 2012}) 12... a4 {[%emt 0:01:40]} 13. Rab1 {[%emt 0:10:30]} axb3 {[%emt 0:10:49]} 14. axb3 {[%emt 0:00:08]} Ra2 {[%emt 0:02:42]} 15. e5 {[%emt 0:11:02]} Nd7 {[%emt 0:16:07]} 16. Ne4 {[%emt 0:17:11]} Bxe4 {[%emt 0:03:48]} 17. Qxe4 {[%emt 0:00:41] And now exd6 would win.} Qa8 {[%emt 0:00:12]} (17... dxe5 $11 18. Nxe5 Nxe5 19. Bxe5 b4) 18. exd6 $1 $14 {[%emt 0:03:47]} Bxd6 {[%emt 0:01:46]} 19. Qe3 {[%emt 0:00:17]} (19. Ng5 $1 $14 g6 20. Qe3 (20. cxb5 Nb6 $14)) 19... Re8 {[%emt 0:14:20]} 20. Ng5 {[%emt 0:02:19]} h6 {[%emt 0:02:05]} (20... bxc4 $11 {keeps the balance.} 21. dxc4 (21. Qh3 Nf8 $15) (21. Ne4 c3 $11) 21... Nf6) 21. Ne4 $16 {[%emt 0:00:40]} Be7 {[%emt 0:03:01][%cal Bd6e7,Be7f6,Bf6c3][%mdl 32]} 22. Qg3 {[%emt 0:02:19][%csl Gb2][%cal Rg3g7] White is more active.} Rxb2 {[%emt 0:02:53]} 23. Rxb2 $18 {[%emt 0:00:11]} f5 {[%emt 0:00:02]} 24. Nd2 {[%emt 0:01:09]} ({Stronger than} 24. Qg6 Nf8 25. Qh5 fxe4 26. dxe4 bxc4 27. bxc4 Rd8 $15) (24. Nc3 $1 $18 {is more deadly.}) 24... Bf6 $16 {[%emt 0:00:42]} 25. Rbb1 {[%emt 0:00:26]} b4 {[%emt 0:00:57]} 26. Nf3 {[%emt 0:01:31]} Bc3 {[%emt 0:00:16]} 27. Kh1 {[%emt 0:02:18]} Nf6 {[%emt 0:00:05]} 28. Ne5 {[%emt 0:02:16]} Qb8 {[%emt 0:03:36][%cal Og7g5]} 29. Ng6 {[%emt 0:02:54]} (29. Rf3 $16) 29... Qd6 {[%emt 0:01:02]} (29... Kf7 $11 30. Ne5+ Kg8) 30. h3 {[%emt 0:07:05]} (30. Rf2 $14 {is superior.}) 30... Ra8 {[%emt 0:00:22]} (30... Kh7 $11 31. Ne5 g5) 31. Qf3 {[%emt 0:01:32]} ({Don't take} 31. Ne5 Ra2 $14) (31. Rf2 $1 $16) 31... Ra7 {[%emt 0:00:49]} 32. Qe2 {[%emt 0:00:41]} Kh7 {[%emt 0:01:27] [#]} (32... Qc6 $14) 33. Ne5 $2 {[%emt 0:00:19]} ({White must play} 33. Qxe6 $1 $18 {[%mdl 512]} Rd7 34. Qxf5 Qxd3 35. Qxd3 Rxd3 36. Ne5) 33... g6 {[%emt 0:02:36]} (33... g5 $11 {should be considered.}) 34. g4 {[%emt 0:00:23]} Nd7 {[%emt 0:01:37] [#]} (34... Re7 $14) 35. Nxd7 $1 {[%emt 0:01:33]} Rxd7 {[%emt 0:00:04]} 36. Rbd1 {[%emt 0:00:07]} Re7 {[%emt 0:01:30]} 37. Qf3 {[%emt 0:00:24]} Ra7 {[%emt 0:00:20]} (37... Rf7 $142) 38. Rf2 {[%emt 0:00:32]} Rf7 {[%emt 0:01:16]} 39. g5 {[%emt 0:01:40]} (39. Rdf1 $18) 39... hxg5 {[%emt 0:00:45]} 40. fxg5 {[%emt 0:00:12]} Ra7 {[%emt 0:01:19]} 41. h4 {[%emt 0:05:18]} Kg8 {[%emt 0:03:31]} 42. Kg2 {[%emt 0:02:54]} Qd8 {[%emt 0:09:27]} 43. Kf1 {[%emt 0:11:08]} ({Better is} 43. Re2 $16 Kf7 44. Qc6) 43... Qa8 {[%emt 0:02:04]} (43... Kf7 $11) 44. Qxa8+ $14 {[%emt 0:06:46]} Rxa8 {[%emt 0:01:14]} 45. Kg2 {[%emt 0:00:05]} Kf7 {[%emt 0:00:58]} 46. Rh1 {[%emt 0:02:56]} Ra3 {[%emt 0:00:55]} 47. Rb1 {[%emt 0:00:14]} Ra8 {[%emt 0:01:48]} 48. Rh1 {[%emt 0:04:11]} ({White should play} 48. Kh3 $16) 48... Ra3 $1 {[%emt 0:00:31] Weighted Error Value: White=0.29 (precise) /Black=0.30} 1/2-1/2

[Event "Frauenbundesliga 2021-22"]
[Site "Germany"]
[Date "2022.05.27"]
[Round "4.7"]
[White "Kashlinskaya, Alina"]
[Black "Unuk, Laura"]
[Result "1-0"]
[ECO "E48"]
[WhiteElo "2498"]
[BlackElo "2338"]
[Annotator "TA"]
[PlyCount "73"]
[EventDate "2021.11.26"]
[EventType "team-tourn"]
[EventCountry "GER"]
[SourceTitle "playchess.com"]
[Source "ChessBase"]
[SourceQuality "1"]
[WhiteTeam "Schwaebisch Hall"]
[BlackTeam "Harksheide"]
[TimeControl "40/5400+30:1800+30"]

{[%evp 21,72,21,39,22,53,45,50,37,79,91,111,95,128,89,152,154,175,164,212,200,205,197,274,75,435,435,431,422,496,483,479,477,844,844,649,515,874,873,840,814,864,877,1487,1357,29995,29996,29996,29997,29997,29998,29998,29999,29999]} 1. d4 {[%emt 0:00:03]} Nf6 {[%emt 0:00:06]} 2. c4 {[%emt 0:00:08]} e6 {[%emt 0:00:14]} 3. Nc3 {[%emt 0:00:05]} Bb4 {[%emt 0:01:11]} 4. e3 {[%emt 0:00:11]} O-O {[%emt 0:00:17]} 5. Bd3 {[%emt 0:00:06]} c5 {[%emt 0:02:44]} 6. Nge2 {[%emt 0:00:18]} d5 {[%emt 0:02:34]} 7. cxd5 {[%emt 0:00:29]} cxd4 {[%emt 0:02:18]} 8. exd4 {[%emt 0:00:08]} Nxd5 {[%emt 0:02:03]} 9. a3 {[%emt 0:00:13]} Be7 {[%emt 0:02:08]} 10. O-O {[%emt 0:05:18]} Nc6 {[%emt 0:12:01]} 11. Nxd5 $1 {[%emt 0:18:32][%mdl 4] outshines the older 11.Bc2.} Qxd5 {[%emt 0:06:29]} 12. Be3 {[%emt 0:00:58] E48: Nimzo-Indian: Rubinstein: 5 Bd3 d5 including 6 Ne2, but excluding 6 a3.} (12. Qc2 $5 {[%cal Rd3h7]}) 12... Rd8 {[%emt 0:07:21]} 13. Qc2 {[%emt 0:12:36]} g6 {[%emt 0:06:27]} 14. Be4 {[%emt 0:01:23] [#] White is slightly better.} Qb5 $146 {[%emt 0:09:19]} ({Predecessor:} 14... Qd7 15. Rfd1 Qe8 16. Rac1 Bd7 17. b4 Rac8 18. Qb2 Bf6 19. Bf4 b6 20. b5 Na5 {0-1 (36) Fraczek,L (1908)-Pipala,J (1977) Pszczyna 2009}) 15. Rad1 {[%emt 0:10:41]} Bf6 {[%emt 0:14:24]} 16. Nc3 {[%emt 0:04:50]} Qh5 {[%emt 0:00:26][%cal Rc6d4]} 17. d5 $36 {[%emt 0:07:57][%mdl 2048] White has strong initiative.} Ne7 {[%emt 0:04:26]} (17... Ne5 $142) 18. dxe6 $16 {[%emt 0:01:23] White is more active.} Bxe6 {[%emt 0:00:14]} 19. Bxb7 {[%emt 0:02:17] Ne4 is the strong threat.} Rxd1 {[%emt 0:08:33]} (19... Rab8 $142) 20. Rxd1 $18 {[%emt 0:11:57]} ({Weaker is} 20. Nxd1 Rb8 21. Be4 (21. Bf3 Qa5 $14) 21... Qa5 $14) (20. Qxd1 Qxd1 21. Rxd1 Rb8 $14) 20... Rb8 {[%emt 0:00:05]} 21. Ne4 {[%emt 0:02:42]} ({But not} 21. Bf3 Bg4) 21... Bxb2 {[%emt 0:07:24] [#]} (21... Bh4 $142) 22. Bg5 $2 {[%emt 0:03:38]} (22. Rd2 $1 $18 Be5 23. f4) 22... Nf5 $2 {[%emt 0:08:30][%mdl 8192]} 23. Bf6 {[%emt 0:04:51]} Nd4 {[%emt 0:01:57]} 24. Rxd4 {[%emt 0:06:31] White wants to mate with Qc7.} Bxd4 {[%emt 0:00:04]} 25. Bxd4 {[%emt 0:00:05] Threatening mate with Nf6+.} Qa5 {[%emt 0:01:03][%cal Ra5e1]} 26. Bc3 {[%emt 0:01:02] Inhibits Qe1+.} ({Don't take} 26. Nf6+ Kf8 27. Bc3 Qd8 28. Nxh7+ Kg8 $18) 26... Qxa3 {[%emt 0:00:29]} (26... Qd8 $142 27. Nf6+ Kf8 28. Nxh7+ Kg8) 27. Nf6+ {[%emt 0:01:52]} Kf8 {[%emt 0:00:01]} 28. Nxh7+ {[%emt 0:01:06]} Kg8 {[%emt 0:00:03]} (28... Ke8 $142 29. Bc6+ Bd7) 29. Nf6+ {[%emt 0:00:20]} Kf8 {[%emt 0:00:36] [#]} 30. Qd2 $1 {[%emt 0:00:48] Strongly threatening Bb4+.} a5 {[%emt 0:00:21] [#] Against Bb4+} (30... Qb3 31. h3) 31. h4 $1 {[%emt 0:00:42]} Ke7 {[%emt 0:01:12] [#]} (31... Qc5 32. h5) 32. Ne4 $1 {[%emt 0:02:12] Bf6+ would kill now.} Bf5 {[%emt 0:00:52]} (32... f5 33. Bd4) 33. Bf6+ {[%emt 0:00:46] White mates.} Kf8 {[%emt 0:00:14]} 34. Qh6+ {[%emt 0:00:20]} Ke8 {[%emt 0:00:03]} 35. Bc6+ {[%emt 0:00:11]} Bd7 {[%emt 0:00:29]} 36. Qh8+ {[%emt 0:00:09]} Qf8 {[%emt 0:00:07]} 37. Nd6# {[%emt 0:00:03] Black did not feel at home in the position after the opening.  Weighted Error Value: White=0.18 (very precise) /Black=0.99} 1-0

[Event "Frauenbundesliga 2021-22"]
[Site "Germany"]
[Date "2022.05.27"]
[Round "4.9"]
[White "Arabidze, Meri"]
[Black "Radikovic, Anamarija"]
[Result "1-0"]
[ECO "A07"]
[WhiteElo "2436"]
[BlackElo "2133"]
[Annotator "TA"]
[PlyCount "67"]
[EventDate "2021.11.26"]
[EventType "team-tourn"]
[EventCountry "GER"]
[SourceTitle "playchess.com"]
[Source "ChessBase"]
[SourceQuality "1"]
[WhiteTeam "Schwaebisch Hall"]
[BlackTeam "Harksheide"]
[TimeControl "40/5400+30:1800+30"]

{[%evp 12,67,22,26,31,35,25,0,25,12,29,18,12,14,31,8,38,47,53,46,62,56,177,112,114,116,123,94,130,129,150,141,162,126,159,174,161,119,120,122,303,156,166,163,216,201,489,482,481,489,477,480,456,468,582,580,560,560]} 1. Nf3 {[%emt 0:00:06]} d5 {[%emt 0:00:07]} 2. g3 {[%emt 0:00:11]} Nf6 {[%emt 0:00:08]} 3. Bg2 {[%emt 0:00:09]} Bg4 {[%emt 0:00:15]} 4. O-O {[%emt 0:01:04]} Nbd7 {[%emt 0:01:09]} 5. d3 {[%emt 0:00:25]} c6 {[%emt 0:02:22]} 6. Nbd2 {[%emt 0:00:20]} e5 {[%emt 0:00:44]} 7. e4 {[%emt 0:00:47]} Bc5 {[%emt 0:07:21] A07: Réti Opening: New York and Capablanca Systems.} 8. h3 {[%emt 0:02:21]} Bxf3 {[%emt 0:09:59]} 9. Bxf3 {[%emt 0:01:43]} dxe4 {[%emt 0:07:13] The position is equal.} 10. dxe4 {[%emt 0:00:40]} O-O {[%emt 0:00:22]} 11. Nc4 {[%emt 0:05:19]} Qc7 {[%emt 0:02:20]} 12. Qe2 {[%emt 0:02:32]} Rfd8 {[%emt 0:04:01]} 13. c3 {[%emt 0:02:02]} Nf8 {[%emt 0:02:27] [#]} 14. b4 $146 {[%emt 0:07:11]} ({Predecessor:} 14. Bg5 Be7 15. Bxf6 Bxf6 16. Bg4 Nd7 17. Rfd1 Nb6 18. Ne3 g6 19. h4 Rxd1+ 20. Rxd1 {½-½ (35) Choisy,M (2150)-Martsynovskaya,M (2156) Nancy 2013}) 14... Be7 {[%emt 0:05:23]} 15. a4 {[%emt 0:01:55]} Qd7 {[%emt 0:04:31]} 16. Kg2 {[%emt 0:04:28]} (16. Nxe5 {feels hotter.} Qxh3 17. Ng4 h5 18. Nxf6+ Bxf6 19. e5) 16... Qd3 {[%emt 0:02:33]} (16... Qc7 $14) 17. Qxd3 {[%emt 0:02:13]} (17. Nxe5 Qxe2 18. Bxe2 Nxe4 $11) (17. Qa2 $18 Qd7 18. Nxe5) 17... Rxd3 $16 {[%emt 0:00:55]} 18. Bb2 {[%emt 0:00:20]} ({Don't play} 18. Nxe5 Rxc3 19. b5 cxb5 $11) 18... Ng6 {[%emt 0:05:53]} 19. Na5 {[%emt 0:08:53]} c5 {[%emt 0:14:48]} 20. b5 {[%emt 0:02:08]} ({But not} 20. Nxb7 $6 cxb4 21. Rfd1 Rxd1 22. Rxd1 h6 $14) 20... Rd7 {[%emt 0:01:17]} 21. Nc4 {[%emt 0:02:33]} Rad8 {[%emt 0:04:19]} 22. Bc1 {[%emt 0:04:24]} Rd3 {[%emt 0:00:56]} 23. Ra3 {[%emt 0:00:26]} Ne8 {[%emt 0:01:08]} 24. Be2 {[%emt 0:02:50]} R3d7 {[%emt 0:00:16]} 25. Be3 {[%emt 0:12:57]} Nc7 $2 {[%emt 0:09:52] [#]} (25... Nd6 $16 {keeps fighting.}) 26. Ra2 {[%emt 0:01:54]} (26. b6 $18) 26... b6 {[%emt 0:00:12]} 27. h4 {[%emt 0:04:44] Strongly threatening h5.} f6 {[%emt 0:00:43]} (27... Bf6 $142 28. a5 Nxb5) 28. Rb1 $18 {[%emt 0:00:43]} Ra8 $2 {[%emt 0:04:33]} (28... Ne8 {might work better.} 29. a5 Rb8) 29. a5 {[%emt 0:01:45] White is clearly winning.} Rdd8 {[%emt 0:00:39]} 30. axb6 {[%emt 0:02:55]} axb6 {[%emt 0:00:08] [#]} 31. Nxb6 $1 {[%emt 0:01:42]} Rxa2 {[%emt 0:00:45]} (31... Nxh4+ $2 32. gxh4 Rab8 33. Na4) 32. Bc4+ {[%emt 0:00:05]} Kh8 {[%emt 0:00:05] ...Ra3 is the strong threat.} 33. Bxa2 {[%emt 0:00:05]} Rb8 {[%emt 0:01:15]} 34. Nd5 {[%emt 0:00:18] Weighted Error Value: White=0.14 (very precise) /Black=0.39} 1-0

[Event "Frauenbundesliga 2021-22"]
[Site "Germany"]
[Date "2022.05.27"]
[Round "4.10"]
[White "Adamowicz, Katarzyna"]
[Black "Atalik, Ekaterina"]
[Result "0-1"]
[ECO "C77"]
[WhiteElo "2108"]
[BlackElo "2414"]
[Annotator "TA"]
[PlyCount "118"]
[EventDate "2021.11.26"]
[EventType "team-tourn"]
[EventCountry "GER"]
[SourceTitle "playchess.com"]
[Source "ChessBase"]
[SourceQuality "1"]
[WhiteTeam "Harksheide"]
[BlackTeam "Schwaebisch Hall"]
[TimeControl "40/5400+30:1800+30"]

{[%evp 15,118,29,27,23,33,16,33,29,41,34,35,31,45,53,50,45,61,41,81,25,31,31,32,-21,-27,-35,-32,-42,-45,-39,0,0,20,39,33,-17,16,16,7,16,14,0,55,14,20,6,30,0,0,0,48,0,0,0,0,0,0,0,0,0,0,0,0,0,0,0,0,0,50,47,51,33,48,34,262,150,158,149,231,0,-4,-1866,-466,-1815,-1772,-1772,-1824,-1541,-1564,-1303,-1149,-2423,-1949,-1872,-1831,-1938,-1882,-29977,-29978,-29996,-29997,-29997,-29998,-29998,-29999]} 1. e4 {[%emt 0:00:02]} e5 {[%emt 0:00:07]} 2. Nf3 {[%emt 0:00:05]} Nc6 {[%emt 0:00:09]} 3. Bb5 {[%emt 0:00:06]} a6 {[%emt 0:00:21]} 4. Ba4 {[%emt 0:00:05]} Nf6 {[%emt 0:00:14]} 5. d3 {[%emt 0:01:20]} d6 {[%emt 0:01:25]} 6. c3 {[%emt 0:00:15]} Be7 {[%emt 0:00:44]} 7. O-O {[%emt 0:04:45] 7.0-0 is better than 7.Nbd2.} O-O {[%emt 0:00:27]} 8. Nbd2 {[%emt 0:01:25]} Re8 {[%emt 0:01:46]} 9. Re1 {[%emt 0:02:04] C77: Ruy Lopez: 3...a6 4 Ba4 Nf6, unusual lines.} Bf8 {[%emt 0:01:33]} 10. Nf1 {[%emt 0:05:06]} g6 {[%emt 0:02:16]} 11. h3 {[%emt 0:00:38] White is slightly better.} Bg7 {[%emt 0:02:49]} 12. Bg5 {[%emt 0:14:03] [#]} h6 $146 {[%emt 0:02:10]} ({Predecessor:} 12... b5 13. Bb3 Na5 14. Bc2 c5 15. a4 Rb8 16. Ne3 b4 17. cxb4 Rxb4 18. b3 Be6 {1-0 (67) Szukalski,A (1846)-Chomczyk,M (1727) Warsaw 2011}) 13. Bh4 {[%emt 0:00:04]} g5 {[%emt 0:05:38]} 14. Bg3 {[%emt 0:00:05]} Bd7 {[%emt 0:06:35]} 15. Ne3 {[%emt 0:03:14]} b5 {[%emt 0:03:19]} 16. Bb3 {[%emt 0:02:18]} Ne7 {[%emt 0:04:37]} 17. Nh2 {[%emt 0:10:44]} (17. h4 $16) 17... Ng6 {[%emt 0:05:34]} 18. Nhg4 {[%emt 0:03:44]} Nf4 {[%emt 0:02:58]} 19. Bxf4 {[%emt 0:14:39]} (19. a4 $14) 19... exf4 $11 {[%emt 0:05:00]} 20. Nxf6+ {[%emt 0:02:19]} Qxf6 {[%emt 0:03:40]} 21. Nd5 {[%emt 0:00:20]} Qd8 {[%emt 0:00:38] Hoping for ...c6.} 22. Qh5 {[%emt 0:00:54]} Be6 {[%emt 0:09:22] Strongly threatening ...a5.} 23. Nb4 $1 {[%emt 0:08:16]} a5 {[%emt 0:05:49]} 24. Nc6 {[%emt 0:02:45]} Qd7 {[%emt 0:00:43]} 25. Nd4 {[%emt 0:01:02]} (25. Bd5 $14) 25... Bxb3 {[%emt 0:11:52]} 26. axb3 {[%emt 0:02:04]} Bxd4 {[%emt 0:00:29]} 27. cxd4 {[%emt 0:00:05]} Kg7 {[%emt 0:00:40]} 28. d5 {[%emt 0:00:44]} Qe7 {[%emt 0:07:22]} (28... c6 $11) 29. Rec1 {[%emt 0:03:43]} Ra7 {[%emt 0:00:45]} 30. Qg4 {[%emt 0:00:34]} Rf8 {[%emt 0:04:56]} 31. Qf5 {[%emt 0:03:25]} Qf6 {[%emt 0:01:12]} 32. Qd7 {[%emt 0:00:46]} f3 {[%emt 0:01:46]} (32... Qxb2 $11 33. Qxb5 Rfa8) 33. Qxb5 {[%emt 0:02:30]} (33. Rc2 $14) 33... fxg2 {[%emt 0:01:15]} 34. Kxg2 {[%emt 0:00:05]} Qxb2 {[%emt 0:01:57]} 35. Qc4 {[%emt 0:01:19]} Rb8 {[%emt 0:03:30]} 36. Rab1 {[%emt 0:05:54]} Qf6 {[%emt 0:01:10]} 37. Re1 {[%emt 0:01:17][%cal Bc1e1,Be1e3,Be3f3,Bf3f5][%mdl 32]} Rb4 {[%emt 0:02:22]} 38. Qc6 {[%emt 0:00:49]} Rab7 {[%emt 0:00:54]} 39. Re3 {[%emt 0:03:38]} a4 {[%emt 0:00:47]} 40. Rf3 {[%emt 0:00:07]} Qe7 {[%emt 0:00:31]} 41. Ra1 {[%emt 0:03:44]} (41. Qc3+ Kh7 42. Qc6 Kg8 $17) 41... Rxb3 {[%emt 0:16:57]} (41... axb3 $11 42. Ra8 R7b6) 42. Rxa4 $14 {[%emt 0:00:24]} R3b6 {[%emt 0:03:31]} 43. Qc4 {[%emt 0:00:06]} Rb1 {[%emt 0:01:37]} 44. Rf5 {[%emt 0:01:39]} g4 $2 {[%emt 0:03:02] [#]} (44... f6 $14) 45. Qd4+ {[%emt 0:02:04]} (45. e5 $1 $18 gxh3+ 46. Kh2 dxe5 47. Qg4+ Kh8 48. Qh5) 45... Kh7 $16 {[%emt 0:00:08]} 46. hxg4 {[%emt 0:00:33] Black must now prevent Rh5.} ({Don't play} 46. Ra8 Rb8 47. Rxb8 gxh3+ 48. Kxh3 Rxb8 $16) 46... Rb8 {[%emt 0:01:50]} (46... c5 $16 47. Qf6 (47. dxc6 Qh4 $11) 47... Qxf6 48. Rxf6 R1b6) 47. Qe3 $2 {[%emt 0:05:55]} (47. Rh5 $18) 47... Qh4 $11 {[%emt 0:01:26]} 48. e5 $2 {[%emt 0:10:13][%mdl 8192]} ({Avoid the trap} 48. Rxf7+ $2 Kg8 49. Qf3 Rh1 50. Rf8+ Rxf8 $19) (48. Qe2 $11) 48... Qh1+ $19 {[%emt 0:01:09]} 49. Kg3 {[%emt 0:13:04]} Rg1+ {[%emt 0:01:05]} 50. Kf4 {[%emt 0:00:00]} Qh2+ {[%emt 0:02:04][%mdl 64] Deflection} 51. Ke4 {[%emt 0:00:00]} Rxg4+ {[%emt 0:00:53]} 52. f4 {[%emt 0:00:00]} dxe5 {[%emt 0:01:36]} 53. Rxe5 {[%emt 0:02:00]} Rg3 {[%emt 0:01:03]} 54. Qe1 {[%emt 0:00:00]} Rb2 {[%emt 0:00:41] ( -> ...Re2+)} 55. Kd4 {[%emt 0:00:00] [#]} Rxd3+ $3 {[%emt 0:00:45][%mdl 512]} 56. Kxd3 {[%emt 0:00:23]} (56. Kc5 Qc2+) 56... Qc2+ {[%emt 0:00:10] Black mates.} 57. Ke3 {[%emt 0:00:36]} Rb3+ {[%emt 0:00:34]} 58. Kd4 {[%emt 0:00:26]} Rd3+ {[%emt 0:00:19][%mdl 64] Discovered Attack} 59. Ke4 {[%emt 0:00:04]} Rc3+ {[%emt 0:00:47] Weighted Error Value: White=0.53/Black=0.19 (very precise)} 0-1

[Event "Frauenbundesliga 2021-22"]
[Site "Germany"]
[Date "2022.05.27"]
[Round "4.11"]
[White "Daulyte-Cornette, Deimante"]
[Black "Brandt, Carina"]
[Result "1-0"]
[ECO "C02"]
[WhiteElo "2372"]
[BlackElo "2061"]
[Annotator "TA"]
[PlyCount "89"]
[EventDate "2021.11.26"]
[EventType "team-tourn"]
[EventCountry "GER"]
[SourceTitle "playchess.com"]
[Source "ChessBase"]
[SourceQuality "1"]
[WhiteTeam "Schwaebisch Hall"]
[BlackTeam "Harksheide"]
[TimeControl "40/5400+30:1800+30"]

{[%evp 12,89,0,0,18,5,20,7,11,4,27,26,29,24,72,64,71,63,72,39,37,14,41,20,37,0,0,0,0,-22,41,33,69,62,80,0,0,0,-25,-33,0,0,0,0,0,0,0,-120,-117,-543,-76,-76,-76,-80,-87,-93,-83,-84,396,355,910,924,910,894,813,607,1385,989,918,502,1079,1089,1045,1121,1018,662,2172,1725,29984,29984]} 1. e4 {[%emt 0:00:04]} e6 {[%emt 0:00:08]} 2. d4 {[%emt 0:00:05]} d5 {[%emt 0:00:04]} 3. e5 {[%emt 0:00:08]} c5 {[%emt 0:00:06]} 4. c3 {[%emt 0:00:05]} Nc6 {[%emt 0:00:05]} 5. Nf3 {[%emt 0:00:07]} Bd7 {[%emt 0:00:05]} 6. Be2 {[%emt 0:00:16]} Nge7 {[%emt 0:01:28]} 7. Na3 {[%emt 0:00:46][%cal Bb1a3,Ba3c2,Bc2e3][%mdl 32]} a6 {[%emt 0:01:08] C02: French: Advance Variation.} 8. Nc2 {[%emt 0:04:59]} Rc8 {[%emt 0:03:23]} 9. h4 {[%emt 0:08:45]} cxd4 {[%emt 0:02:51] The position is equal.} 10. cxd4 {[%emt 0:01:15]} Na5 {[%emt 0:02:48]} 11. b3 {[%emt 0:05:23] Inhibits Ba4.} Qc7 {[%emt 0:06:00]} 12. Ne3 {[%emt 0:01:00] [#]} Bb5 $146 {[%emt 0:01:51]} (12... Nf5 $11) ({Predecessor:} 12... Nec6 13. O-O Be7 14. Bd2 O-O 15. Bd3 f5 16. exf6 Bxf6 17. Rc1 Qd8 18. b4 Nc4 19. Nxc4 dxc4 20. Rxc4 {1-0 (37) Sveshnikov,E (2525)-Saether,O Gausdal 1992}) 13. Bxb5+ $16 {[%emt 0:04:27]} axb5 {[%emt 0:00:07]} 14. O-O {[%emt 0:04:35]} Nec6 {[%emt 0:06:56][%cal Be7c6,Bc6a7,Ba7b5,Bb5c3,Bc3e2][%mdl 32]} 15. Qd3 {[%emt 0:09:52]} Qb6 {[%emt 0:01:47]} 16. Bd2 {[%emt 0:00:35]} Be7 {[%emt 0:08:40]} 17. Nc2 {[%emt 0:02:15]} b4 {[%emt 0:05:58]} 18. Rac1 {[%emt 0:03:50]} Na7 {[%emt 0:02:24]} 19. h5 {[%emt 0:04:57]} h6 {[%emt 0:00:41]} 20. Nfe1 {[%emt 0:05:53]} N5c6 {[%emt 0:03:45]} ({Better is} 20... O-O $11) 21. Qg3 $1 $14 {[%emt 0:07:32]} Bf8 {[%emt 0:09:01]} 22. Nd3 {[%emt 0:14:02]} Ra8 {[%emt 0:13:12]} 23. Be3 {[%emt 0:03:22] White is more active.} ({White should play} 23. Qg4 $16) 23... Nb5 $11 {[%emt 0:02:56][%csl LRa2,LRd4]} 24. f4 {[%emt 0:00:22]} Nc3 $1 {[%emt 0:04:10] Threatens to win with ...Ne2+.} (24... Rxa2 25. Ncxb4 Ra8 26. Nxc6 bxc6 27. f5 $18) 25. Qf3 {[%emt 0:03:47] Inhibits Ne2+.} Rxa2 {[%emt 0:03:03]} 26. f5 {[%emt 0:00:40]} exf5 {[%emt 0:03:41]} 27. Qxf5 $40 {[%emt 0:00:38][%mdl 128] White attacks.} Ne2+ {[%emt 0:01:09]} 28. Kh2 {[%emt 0:00:21]} Nd8 {[%emt 0:00:42]} 29. Rce1 {[%emt 0:07:31]} Rxc2 $17 {[%emt 0:02:37]} 30. Nc5 {[%emt 0:00:19][%mdl 8192] [#] Prevents Qe6.} (30. Qf2 $17 {nothing else works.}) 30... Rxc5 $2 {[%emt 0:01:20]} (30... Bxc5 $1 $19 {has better winning chances.} 31. Qxc2 Nxd4 32. Bxd4 Bxd4) 31. dxc5 {[%emt 0:00:06]} Qb5 {[%emt 0:01:12] ...d4 is the strong threat.} 32. e6 {[%emt 0:03:31]} fxe6 {[%emt 0:02:04]} 33. Qg4 {[%emt 0:00:07]} Nc3 {[%emt 0:02:02]} 34. Bd4 {[%emt 0:00:11] [#]} Kd7 {[%emt 0:02:21][%mdl 8192]} (34... Be7 $1 $17 {keeps the pressure on. Hoping for ...Rf8.} 35. Qxg7 Rf8 36. Qg6+ Kd7 37. Rxf8 Bxf8 38. Qh7+ Ke8) 35. Bxg7 $18 {[%emt 0:00:59] Chess con chili.} Rg8 {[%emt 0:00:20]} (35... Bxc5 36. Bxh8 Bd6+ 37. Kg1 Ne4) 36. Rxf8 {[%emt 0:00:10]} Rxf8 {[%emt 0:00:49]} 37. Bxf8 {[%emt 0:00:04]} Ne4 {[%emt 0:00:32] Inhibits Bd6.} 38. Qg7+ {[%emt 0:01:44]} Kc6 {[%emt 0:00:39]} 39. Qxh6 {[%emt 0:03:01]} Qd3 {[%emt 0:02:06]} 40. Qe3 {[%emt 0:01:36]} Qc2 {[%emt 0:01:10]} (40... Qxe3 $142 41. Rxe3 Nf7) 41. Rf1 {[%emt 0:04:40]} Qb2 {[%emt 0:01:42]} 42. h6 {[%emt 0:04:22]} Qe5+ {[%emt 0:01:55]} 43. Qf4 {[%emt 0:00:34]} Qh5+ {[%emt 0:00:52]} 44. Kg1 {[%emt 0:00:09] Qb8 would kill now.} Qg6 {[%emt 0:11:48]} 45. Qb8 {[%emt 0:03:34] Never resign too early!  Weighted Error Value: White=0.64/Black=0.75} 1-0